[Event "Serbian-ch Semifinal 2024"]
[Site "Paracin"]
[Date "2024.02.11"]
[Round "9.3"]
[White "Atalik, Suat"]
[Black "Pap, Misa"]
[Result "1-0"]
[ECO "E20"]
[WhiteElo "2439"]
[BlackElo "2422"]
[Annotator "TA"]
[PlyCount "93"]
[EventDate "2024.02.04"]
[EventType "swiss"]
[EventCountry "SRB"]
[SourceTitle "playchess.com"]
[Source "ChessBase"]
[SourceQuality "1"]
[TimeControl "40/5400+30:1800+30"]

{[%evp 30,93,-62,-68,-50,-88,-90,-82,-95,-79,-82,-114,-113,-93,-88,-261,-137,-149,-99,-104,-72,-94,-72,-88,0,0,0,0,0,0,-3,-214,-210,-268,22,0,38,29,8,7,15,10,191,6,6,3,95,81,41,0,0,0,0,0,477,461,1252,1329,1268,1169,29966,29967,29966,1018,6824,6223]} 1. d4 {[%emt 0:00:03]} Nf6 {[%emt 0:02:23]} 2. c4 {[%emt 0:00:18]} e6 {[%emt 0:00:26]} 3. Nc3 {[%emt 0:00:23]} Bb4 {[%emt 0:00:27]} 4. g3 {[%emt 0:00:23]} Bxc3+ {[%emt 0:02:41]} 5. bxc3 {[%emt 0:00:07]} d6 {[%emt 0:00:18]} 6. Bg2 {[%emt 0:01:43] E20: Nimzo-Indian: 4 g3 and 4 f3.} O-O {[%emt 0:00:08]} 7. Nf3 {[%emt 0:00:20]} Nc6 {[%emt 0:00:06] 7...Nbd7 is not played anymore.} 8. Qd3 {[%emt 0:01:37]} Re8 {[%emt 0:13:34]} 9. O-O {[%emt 0:12:50]} e5 {[%emt 0:00:20]} 10. Nd2 {[%emt 0:00:05]} Qe7 {[%emt 0:14:21]} 11. e4 {[%emt 0:04:38]} b6 {[%emt 0:01:41]} 12. Re1 {[%emt 0:05:59]} Ba6 {[%emt 0:01:28]} 13. Ba3 {[%emt 0:00:36]} Qd7 $146 {[%emt 0:11:11]} ({Predecessor:} 13... Nd7 14. f4 Qf6 15. Bh3 Bc8 16. Bxd7 Bxd7 17. fxe5 dxe5 18. d5 Na5 19. Nb3 Nb7 {1-0 Abdusattorov,N (2634)-Praggnanandhaa,R (2608) Gelfand Challenge rapid 2021 (4)}) 14. f4 {[%emt 0:07:36]} Na5 {[%emt 0:04:00]} 15. fxe5 {[%emt 0:12:54]} dxe5 {[%emt 0:01:02]} 16. d5 {[%emt 0:00:43]} c5 {[%emt 0:08:24]} 17. Rf1 {[%emt 0:00:28]} Qe7 {[%emt 0:05:52]} (17... Qa4 18. Rxf6 Qxa3 (18... gxf6 19. Qf3 $17) 19. Rf2 $11) 18. Bf3 {[%emt 0:03:19]} Rf8 {[%emt 0:05:53]} 19. Bd1 {[%emt 0:00:53]} Ne8 {[%emt 0:01:09]} 20. Ba4 {[%emt 0:00:15]} Nd6 {[%emt 0:00:09]} 21. Bb5 {[%emt 0:00:04]} Bc8 {[%emt 0:00:10]} 22. Nb3 $2 {[%emt 0:00:43]} (22. Kg2 $17 {was worth a try.}) 22... Nab7 {[%emt 0:03:02]} (22... a6 $19 23. Nxa5 axb5) 23. Rf2 {[%emt 0:03:12]} Bg4 {[%emt 0:05:06]} (23... f5 $142 24. Nd2 fxe4 25. Rxf8+ Qxf8) 24. Re1 $17 {[%emt 0:03:00]} Rac8 {[%emt 0:01:09]} 25. Nd2 {[%emt 0:01:27]} Bd7 {[%emt 0:03:03]} 26. Nf3 {[%emt 0:05:48]} f5 {[%emt 0:09:10]} (26... f6 $17 27. Ba6 Qe8) 27. Bxd7 $11 {[%emt 0:00:27]} Qxd7 {[%emt 0:00:44]} 28. Nxe5 {[%emt 0:00:44]} Qa4 {[%emt 0:00:11]} 29. exf5 {[%emt 0:11:33]} Qxa3 {[%emt 0:00:24]} 30. f6 $2 {[%emt 0:00:52] [#]} (30. Nc6 $1 $11) 30... Rce8 $1 $19 {[%emt 0:02:22]} (30... gxf6 31. Nd7 f5 32. Nxf8 Rxf8 33. Qe3 $16) (30... Rxf6 31. Rxf6 gxf6 32. Nd7 $11) 31. Qd2 {[%emt 0:08:43]} gxf6 $2 {[%emt 0:03:40]} (31... Rxf6 $19 32. Rxf6 gxf6) 32. Nd7 {[%emt 0:01:56]} Qa4 {[%emt 0:01:22]} (32... Nxc4 33. Nxf6+ Kh8 34. Rxe8 (34. Nxe8 Rg8 35. Qh6 Qxc3 36. Re7 Qa1+ 37. Kg2 Ne3+ 38. Rxe3 Qd4) 34... Nxd2 35. Rxf8+ Kg7 36. Ne8+ Kh6 37. R8f6+ (37. Rxd2 $2 Qc1+ 38. Rf1 Qxd2 $19) (37. R2f6+ Kh5 38. Rf5+ Kg4 39. Kg2 Qxc3 40. h3#) 37... Kg5 38. R2f5+ (38. Rxd2 $2 Qc1+ 39. Rf1 Qxd2 $19) 38... Kg4 39. Kg2 Qxc3 40. h3#) (32... Rxe1+ $5 33. Qxe1 f5 $11) 33. Nxf6+ {[%emt 0:03:06]} (33. Nxf8 {is more complex.} Rxf8 34. Re6 Qd7 35. Qf4) 33... Rxf6 {[%emt 0:00:20]} 34. Rxf6 {[%emt 0:00:05]} Rxe1+ $1 {[%emt 0:00:32]} ({Inferior is} 34... Qxc4 35. Qg5+ Kh8 36. Rxe8+ Nxe8 37. Rf8#) (34... Ne4 35. Rxe4 Kh8 36. Qh6 (36. Rxe8+ Qxe8 37. Qh6 Kg8 38. Qg5+ Qg6 39. Rxg6+ hxg6 40. Qxg6+ Kf8 41. Qf6+ Ke8) 36... Rg8 37. Rf8 Qd1+ 38. Rf1) 35. Qxe1 {[%emt 0:00:05]} Qd7 $2 {[%emt 0:01:12]} (35... Nf7 $1 $11 {and Black has nothing to worry.}) 36. Re6 $2 {[%emt 0:04:25]} (36. Qe5 $18) 36... Nd8 $1 $11 {[%emt 0:00:00]} 37. Re7 {[%emt 0:00:23]} Qf5 {[%emt 0:00:02]} (37... Qa4 $1 $11) 38. Rxa7 $16 {[%emt 0:00:42]} N8f7 {[%emt 0:00:19]} 39. Qe6 {[%emt 0:02:14]} Qf3 {[%emt 0:01:05]} 40. Rd7 {[%emt 0:04:11]} Qd1+ {[%emt 0:00:33]} 41. Kg2 {[%emt 0:30:34]} Qc2+ $2 {[%emt 0:12:15][%mdl 8192]} (41... Kf8 $11 {and Black is okay.}) 42. Kh3 $18 {[%emt 0:00:00]} Kf8 {[%emt 0:01:38]} (42... Qf5+ $142 43. Qxf5 Nxf5) 43. Qe7+ $18 {[%emt 0:00:00]} (43. Rxd6 $2 {is the wrong capture.} Ng5+ (43... Qxa2 $2 {perishes.} 44. Qc8+ Kg7 45. Qg4+ Kf8 46. Rc6 $18) 44. Kg4 Nxe6 45. dxe6 Qe4+ (45... Qxc3 $2 46. Kf5 $19) (45... Qxh2 $2 46. Rxb6 h5+ 47. Kf5 $19) (45... Qxa2 $2 46. Rxb6 Qxc4+ 47. Kh3 $19) 46. Kh3 Qb1 $19 (46... Qxc4 $2 47. Rxb6 h5 48. Rb2 $19)) 43... Kg8 {[%emt 0:00:28]} 44. Rd8+ {[%emt 0:00:00]} Kg7 {[%emt 0:01:20]} 45. Qf8+ {[%emt 0:00:00]} Kg6 {[%emt 0:00:16]} 46. Rxd6+ {[%emt 0:00:00]} Nxd6 {[%emt 0:00:05]} 47. Qxd6+ {[%emt 0:00:00]} 1-0

[Event "Serbian-ch Semifinal 2024"]
[Site "Paracin"]
[Date "2024.02.11"]
[Round "9.5"]
[White "Injac, Teodora"]
[Black "Bryakin, Mikhail"]
[Result "1/2-1/2"]
[ECO "D10"]
[WhiteElo "2439"]
[BlackElo "2479"]
[Annotator "TA"]
[PlyCount "90"]
[EventDate "2024.02.04"]
[EventType "swiss"]
[EventCountry "SRB"]
[SourceTitle "playchess.com"]
[Source "ChessBase"]
[SourceQuality "1"]
[TimeControl "40/5400+30:1800+30"]

{[%evp 18,90,38,36,20,13,42,46,41,29,23,16,22,18,29,11,12,22,11,23,31,0,0,-6,-7,-9,0,-9,8,10,0,0,0,0,8,0,0,0,0,0,0,0,0,0,19,19,11,0,16,0,70,0,6,0,4,0,0,0,0,0,0,0,0,0,0,0,0,0,0,0,0,0,0,0,0]} 1. d4 {[%emt 0:00:26]} d5 {[%emt 0:00:08]} 2. c4 {[%emt 0:00:09]} c6 {[%emt 0:00:07]} 3. cxd5 {[%emt 0:00:08]} cxd5 {[%emt 0:00:06]} 4. Bf4 {[%emt 0:00:02]} Nf6 {[%emt 0:00:29]} 5. e3 {[%emt 0:00:22]} Nc6 {[%emt 0:00:15]} 6. Bd3 {[%emt 0:00:24]} a6 {[%emt 0:02:17]} 7. Nc3 {[%emt 0:01:12]} Bg4 {[%emt 0:02:00]} 8. Nge2 {[%emt 0:00:44]} e6 {[%emt 0:03:21]} 9. O-O {[%emt 0:00:36]} Be7 {[%emt 0:01:40]} 10. Rc1 {[%emt 0:06:14]} O-O {[%emt 0:00:38]} 11. Na4 {[%emt 0:03:31]} Bh5 {[%emt 0:07:03]} 12. Qb3 {[%emt 0:06:18]} Ra7 {[%emt 0:03:52] White is slightly better.} 13. a3 {[%emt 0:05:36]} Bg6 {[%emt 0:01:05]} 14. Bxg6 {[%emt 0:06:54]} hxg6 {[%emt 0:00:15]} 15. Rc2 {[%emt 0:08:08]} Nd7 {[%emt 0:02:26]} 16. Qc3 {[%emt 0:06:43]} Nb6 {[%emt 0:09:15]} 17. Nxb6 {[%emt 0:02:36]} Qxb6 {[%emt 0:00:17]} 18. Nc1 {[%emt 0:01:38]} Raa8 {[%emt 0:03:53]} 19. Qb3 {[%emt 0:06:36]} Qb5 {[%emt 0:09:12]} 20. Qxb5 {[%emt 0:09:20]} axb5 {[%emt 0:00:09]} 21. Nd3 {[%emt 0:00:02]} g5 {[%emt 0:01:44]} 22. Bg3 {[%emt 0:00:29]} Ra6 {[%emt 0:15:48]} 23. Nc5 {[%emt 0:06:03]} Ra7 {[%emt 0:04:59]} 24. Bc7 {[%emt 0:01:13]} Bxc5 {[%emt 0:04:17]} 25. Rxc5 {[%emt 0:00:58]} b4 $1 {[%emt 0:00:47]} ({Don't play} 25... Rc8 $6 26. Bb6 Ra6 27. Rxb5 $18) 26. Rb5 {[%emt 0:02:23]} bxa3 {[%emt 0:01:51]} 27. bxa3 {[%emt 0:00:04]} Rc8 {[%emt 0:03:50]} 28. Bd6 $36 {[%emt 0:00:16][%mdl 2048] White is pushing.} Na5 {[%emt 0:05:52]} 29. Bc5 {[%emt 0:00:20]} Ra6 {[%emt 0:00:41]} 30. g4 {[%emt 0:02:30]} Rcc6 {[%emt 0:04:17]} 31. Rfb1 {[%emt 0:00:50]} Kh7 {[%emt 0:00:36]} 32. Kg2 {[%emt 0:02:40]} Kg6 {[%emt 0:00:29]} 33. h3 {[%emt 0:08:25]} Kf6 {[%emt 0:02:02]} (33... Ra8 $11) 34. R5b2 {[%emt 0:04:45] White is more active.} (34. e4 $1 $14) 34... Ra8 {[%emt 0:01:13] The position is equal.} 35. Rb5 {[%emt 0:00:28]} Kg6 {[%emt 0:01:03]} 36. R5b2 {[%emt 0:02:39]} Rcc8 {[%emt 0:00:07]} 37. Rb5 {[%emt 0:00:28]} Nc4 {[%emt 0:03:49]} 38. Rxb7 {[%emt 0:00:28]} Nxa3 {[%emt 0:07:02]} 39. Bxa3 {[%emt 0:00:47]} Rxa3 $11 {[%emt 0:00:06][%mdl 4096] Endgame. KRR-KRR} 40. Rd7 {[%emt 0:00:43]} Kf6 {[%emt 0:00:51]} 41. Rbb7 {[%emt 0:30:05]} Rf8 {[%emt 0:30:06]} 42. Kg3 {[%emt 0:00:40]} Ra2 {[%emt 0:00:39]} 43. Rb6 {[%emt 0:00:44]} Ra5 $1 {[%emt 0:00:36]} 44. Rbb7 {[%emt 0:04:29]} Kg6 {[%emt 0:00:24]} 45. Rbc7 {[%emt 0:01:54]} Ra2 {[%emt 0:00:00] Weighted Error Value: White=0.06 (flawless) /Black=0.06 (flawless) .  Mistake:       	White=1     	Black=1      Inaccurate:     	White=1     	Black=1      OK:         	White=13    	Black=14     Best:        	---       	Black=1      Strong:       	---       	Black=2} 1/2-1/2

[Event "Serbian-ch Semifinal 2024"]
[Site "Paracin"]
[Date "2024.02.11"]
[Round "9.6"]
[White "Nestorovic, Nikola"]
[Black "Stankovic, Boris"]
[Result "0-1"]
[ECO "D02"]
[WhiteElo "2465"]
[BlackElo "2310"]
[Annotator "TA"]
[PlyCount "76"]
[EventDate "2024.02.04"]
[EventType "swiss"]
[EventCountry "SRB"]
[SourceTitle "playchess.com"]
[Source "ChessBase"]
[SourceQuality "1"]
[TimeControl "40/5400+30:1800+30"]

{[%evp 10,76,13,0,13,14,10,6,41,19,39,48,76,58,52,42,158,150,151,136,322,150,203,107,150,0,31,15,25,0,0,-59,-62,-59,-64,-60,-52,-58,-64,-64,-56,-64,-73,-88,-85,-83,-86,-89,-95,-121,-127,-124,-117,-188,-183,-156,-136,-259,-227,-272,-235,-321,-321,-351,-268,-355,-336,-321,-274]} 1. d4 {[%emt 0:00:43]} Nf6 {[%emt 0:08:28]} 2. Nf3 {[%emt 0:00:04]} d5 {[%emt 0:02:52]} 3. c3 {[%emt 0:00:06]} e6 {[%emt 0:01:35]} 4. Bf4 {[%emt 0:00:08]} c5 {[%emt 0:04:28]} 5. e3 {[%emt 0:00:17]} Be7 {[%emt 0:06:59]} 6. Nbd2 {[%emt 0:00:37]} O-O {[%emt 0:02:19]} 7. Bd3 {[%emt 0:00:34]} b6 {[%emt 0:05:00]} 8. Ne5 {[%emt 0:15:08]} Bb7 {[%emt 0:05:19] The position is equal.} 9. Qf3 {[%emt 0:06:29]} Nbd7 {[%emt 0:02:30]} (9... a5 {simplifies} 10. O-O Ba6 11. c4 cxd4 12. exd4 Bb7) 10. Qh3 {[%emt 0:04:12]} (10. O-O {simplifies} Nxe5 11. dxe5 Nd7 12. Bc2) 10... g6 {[%emt 0:05:44]} 11. Bh6 {[%emt 0:00:31]} Re8 {[%emt 0:10:39]} 12. f4 {[%emt 0:00:14]} Ne4 {[%emt 0:03:28] [#]} ({Black should try} 12... a5 $14) 13. Nxe4 $1 $16 {[%emt 0:03:38]} dxe4 {[%emt 0:00:30]} 14. Bb5 {[%emt 0:00:05]} Bc8 {[%emt 0:08:12]} (14... Nxe5 $16 15. fxe5 cxd4) 15. Bc6 {[%emt 0:12:06]} (15. O-O-O $18 {is more deadly.}) 15... Rb8 {[%emt 0:00:30]} (15... Nxe5 $16 16. fxe5 (16. Bxa8 $2 Nd3+ 17. Kd2 e5 $19) 16... Ba6 17. Bxa8 (17. Bxe4 Rc8 $16) 17... Qxa8) 16. Bxe4 {[%emt 0:03:00]} ({Better is} 16. O-O-O $18) 16... Qc7 {[%emt 0:02:45]} 17. Nc6 {[%emt 0:02:34]} (17. O-O $16) 17... Nf6 $1 $14 {[%emt 0:01:06]} 18. Nxe7+ {[%emt 0:01:17]} Qxe7 {[%emt 0:02:38]} 19. Bg5 {[%emt 0:23:17] Black must now prevent dxc5.} e5 $1 {[%emt 0:00:30]} 20. Bxf6 {[%emt 0:06:21]} (20. Qh4 $11 exd4 21. Bxf6 Qxe4 22. O-O) 20... Qxf6 $15 {[%emt 0:00:17]} 21. dxe5 {[%emt 0:00:11]} Bxh3 {[%emt 0:02:13]} 22. exf6 {[%emt 0:00:03]} Rxe4 {[%emt 0:00:09]} 23. gxh3 {[%emt 0:00:01]} Rxe3+ $11 {[%emt 0:00:11][%mdl 4096] Endgame. KRR-KRR} 24. Kf2 {[%emt 0:00:04]} Re6 {[%emt 0:00:15]} 25. Rhe1 {[%emt 0:00:05]} Rxf6 {[%emt 0:00:29]} 26. Kg3 {[%emt 0:00:14]} Rd8 {[%emt 0:24:24]} 27. Rad1 {[%emt 0:01:45] Prevents Rd3+} Rfd6 {[%emt 0:00:00]} 28. Rxd6 {[%emt 0:02:09]} Rxd6 $17 {[%emt 0:00:00] KR-KR} 29. Re7 {[%emt 0:07:41]} Rd2 {[%emt 0:00:00]} 30. Rxa7 {[%emt 0:00:03]} Rxb2 {[%emt 0:00:00] Black is more active.} 31. c4 {[%emt 0:00:01] [#]} (31. h4 $17) 31... Kg7 $1 $19 {[%emt 0:00:00]} 32. h4 {[%emt 0:01:03]} Rc2 {[%emt 0:00:00]} 33. Ra6 {[%emt 0:00:06]} (33. h5 $17 {was worth a try.}) 33... Rc3+ {[%emt 0:00:00]} (33... Rxc4 34. Rxb6 Rc3+ 35. Kg2 $17) 34. Kg2 {[%emt 0:01:06]} Rxc4 {[%emt 0:00:00]} 35. Rxb6 {[%emt 0:00:02]} Rxf4 {[%emt 0:00:00]} 36. h5 {[%emt 0:07:44]} Ra4 {[%emt 0:00:00]} ({Not} 36... gxh5 37. Rc6 $17) 37. Rb2 {[%emt 0:01:29]} g5 {[%emt 0:00:00]} ({Weaker is} 37... gxh5 38. Kf3 $19) 38. Rc2 {[%emt 0:00:02]} Kh6 {[%emt 0:00:00] Quite a comeback for Black.   Weighted Error Value: White=0.36/Black=0.23 (precise) .  Loses game:     	---       	Black=1      Missed win:     	White=1     	---        Mistake:       	White=5     	Black=2      Inaccurate:     	White=2     	Black=3      OK:         	White=11    	Black=12     Best:        	White=1     	Black=4      Strong:       	White=1     	Black=2} 0-1

[Event "Serbian-ch Semifinal 2024"]
[Site "Paracin"]
[Date "2024.02.11"]
[Round "9.7"]
[White "Tadic, Stefan"]
[Black "Ratkovic, Milovan"]
[Result "1/2-1/2"]
[ECO "B72"]
[WhiteElo "2390"]
[BlackElo "2396"]
[Annotator "TA"]
[PlyCount "117"]
[EventDate "2024.02.04"]
[EventType "swiss"]
[EventCountry "SRB"]
[SourceTitle "playchess.com"]
[Source "ChessBase"]
[SourceQuality "1"]
[TimeControl "40/5400+30:1800+30"]

{[%evp 24,117,92,58,54,63,68,0,91,93,77,-38,-41,-51,-50,-47,-46,-81,-67,-86,-10,-19,8,13,12,0,13,12,33,0,0,0,113,109,109,109,101,131,118,169,154,155,200,95,385,385,422,422,383,350,350,220,228,230,510,510,412,446,496,471,471,0,649,579,533,0,0,0,0,0,0,0,0,0,0,0,0,0,0,0,0,0,0,0,0,0,0,0,0,-8,-8,-8,-8,-8,0,0]} 1. e4 {[%emt 0:00:03]} c5 {[%emt 0:00:51]} 2. Nf3 {[%emt 0:00:07]} d6 {[%emt 0:00:04]} 3. d4 {[%emt 0:00:05]} cxd4 {[%emt 0:00:20]} 4. Nxd4 {[%emt 0:00:05]} Nf6 {[%emt 0:00:20]} 5. Nc3 {[%emt 0:00:07]} a6 {[%emt 0:00:49]} 6. Bd3 {[%emt 0:00:06]} g6 {[%emt 0:07:41]} 7. f3 {[%emt 0:00:38] seems to push 7.0-0 aside.} Bg7 {[%emt 0:00:41]} 8. Be3 {[%emt 0:00:06]} Nc6 {[%emt 0:02:32] B72: Sicilian Dragon: 6 Be3, lines with h3+Bc4 and sidelines.} 9. Qd2 {[%emt 0:00:09]} Nd7 {[%emt 0:17:38]} 10. Nb3 $146 {[%emt 0:07:52]} ({Predecessor:} 10. Be2 h5 11. O-O-O Qa5 12. h3 Nf6 13. g4 h4 14. f4 Be6 15. Nxe6 fxe6 16. Bc4 {½-½ Krylov,D (1759)-Tkachev,V (2003) Kstovo Kichigin Memorial op 2010 (1)}) 10... b5 {[%emt 0:01:49]} 11. O-O-O {[%emt 0:02:12]} Nb6 {[%emt 0:05:41]} 12. Bh6 {[%emt 0:02:21]} Bxh6 {[%emt 0:15:44]} 13. Qxh6 {[%emt 0:00:55]} Be6 {[%emt 0:02:30]} 14. Qg7 {[%emt 0:15:21]} Kd7 {[%emt 0:04:28] [#]} 15. Nd5 {[%emt 0:13:43]} (15. Qh6 $1 $14) 15... Bxd5 {[%emt 0:02:04]} (15... Nxd5 $11 16. exd5 Bxd5) 16. exd5 $16 {[%emt 0:01:16]} Ne5 {[%emt 0:00:39]} 17. f4 {[%emt 0:00:26]} (17. Qh6 $1 $16) 17... Qf8 $15 {[%emt 0:01:54]} 18. Qxf8 {[%emt 0:04:20]} Nxd3+ {[%emt 0:00:08]} 19. Rxd3 {[%emt 0:00:03]} Rhxf8 {[%emt 0:00:58]} 20. Rf1 {[%emt 0:02:00]} Rac8 {[%emt 0:06:56]} 21. f5 {[%emt 0:03:05]} gxf5 {[%emt 0:07:32]} (21... f6 $17) 22. Rxf5 $11 {[%emt 0:00:30]} e6 {[%emt 0:11:06]} 23. dxe6+ {[%emt 0:05:14]} fxe6 {[%emt 0:00:03]} 24. Rh5 {[%emt 0:05:04]} Rf7 {[%emt 0:00:51]} 25. Nc5+ {[%emt 0:02:08]} Ke7 {[%emt 0:00:13]} 26. Ne4 {[%emt 0:00:05]} Nd5 {[%emt 0:02:22]} 27. Rf3 {[%emt 0:00:44]} Rxf3 {[%emt 0:04:39]} (27... Nf4 $11 {remains equal.}) 28. Rxh7+ $16 {[%emt 0:00:16]} (28. gxf3 Nf6 (28... Rh8 29. Rg5 $14) 29. Nxf6 Kxf6 $15) 28... Rf7 {[%emt 0:01:56]} 29. Rxf7+ {[%emt 0:00:03]} Kxf7 {[%emt 0:00:05]} 30. Nxd6+ {[%emt 0:00:05]} Ke7 {[%emt 0:00:05]} 31. Nxc8+ {[%emt 0:00:02]} Kd7 {[%emt 0:00:01]} 32. Na7 {[%emt 0:00:09]} Kc7 {[%emt 0:02:53]} 33. h4 {[%emt 0:10:23]} (33. g4 $1 $18) 33... Kb6 $2 {[%emt 0:00:33][%mdl 8192] [#]} (33... Nf6 $16 {was worth a try.} 34. Kd2 e5 (34... Kb7 $2 35. Nxb5 axb5 36. c4 $18)) 34. Nxb5 $1 $18 {[%emt 0:07:53]} (34. Nc8+ Kc7 $18) 34... axb5 {[%emt 0:00:21]} 35. h5 {[%emt 0:00:04]} Nf6 {[%emt 0:01:01]} 36. h6 {[%emt 0:00:02]} Kc5 {[%emt 0:00:10]} 37. Kd2 {[%emt 0:00:08]} Kd4 {[%emt 0:00:30]} 38. c3+ {[%emt 0:02:05]} Kd5 $2 {[%emt 0:00:50]} (38... Ke4 {is a better defense.} 39. c4 bxc4) 39. b3 $18 {[%emt 0:01:21]} e5 {[%emt 0:00:03]} 40. a4 {[%emt 0:00:49]} bxa4 {[%emt 0:00:28]} 41. bxa4 {[%emt 0:30:01]} Kc4 {[%emt 0:05:48]} 42. Ke3 $2 {[%emt 0:00:00]} ({Better is} 42. a5 $18 {And now a6 would win.} Kb5 43. Kd3) 42... Kc5 $2 {[%emt 0:17:12][%mdl 8192]} (42... Ng4+ $11 43. Ke4 Nxh6) 43. Kf3 $18 {[%emt 0:00:00]} Kc4 {[%emt 0:02:07] [#]} 44. h7 $2 {[%emt 0:00:00]} (44. a5 $1 $18 {[%mdl 512] Black must now prevent a6.} Kd3 (44... Kb5 45. g4) 45. a6 e4+ 46. Kf4) 44... Nxh7 {[%emt 0:00:07]} 45. Ke4 {[%emt 0:00:00]} Nf6+ {[%emt 0:02:56]} 46. Kxe5 {[%emt 0:00:00]} Nd7+ {[%emt 0:02:55]} 47. Kd6 {[%emt 0:00:00]} (47. Ke6 $5 Nc5+ $8 48. Kf5 $11) 47... Nc5 {[%emt 0:00:43]} 48. a5 {[%emt 0:00:00]} Nb7+ {[%emt 0:00:32]} 49. Ke6 {[%emt 0:00:00]} Nxa5 {[%emt 0:02:34]} 50. g4 {[%emt 0:00:00]} Nb3 {[%emt 0:00:34]} 51. g5 {[%emt 0:00:00]} Nc5+ {[%emt 0:00:24]} 52. Kf5 {[%emt 0:00:00]} Kd5 {[%emt 0:00:18]} 53. c4+ {[%emt 0:00:00]} (53. g6 $5 Ne6 $8 54. c4+ (54. Kf6 Nf4 $11) 54... Kd6 55. Ke4 $11 (55. Kf6 Nf4 $11)) 53... Kd6 $1 {[%emt 0:00:02]} 54. g6 {[%emt 0:00:00]} Ke7 {[%emt 0:00:49]} 55. Ke5 {[%emt 0:00:00]} Kf8 {[%emt 0:00:21]} 56. g7+ {[%emt 0:00:00]} Kxg7 {[%emt 0:00:06]} 57. Kd5 {[%emt 0:00:00]} Nb3 {[%emt 0:00:07]} 58. c5 {[%emt 0:00:00]} Nxc5 {[%emt 0:00:05]} 59. Kxc5 {[%emt 0:00:00]} 1/2-1/2